[Event "WTCC-65 2018"]
[Site "Radebeul"]
[Date "2018.07.10"]
[Round "4"]
[White "Baum, Bernd"]
[Black "Rahls, Peter"]
[Result "0-1"]
[ECO "A26"]
[WhiteElo "2280"]
[BlackElo "2238"]
[Annotator "NA"]
[PlyCount "72"]
[EventDate "2018.07.07"]
[EventType "team-tourn"]
[EventCountry "GER"]
[SourceTitle "playchess.com"]
[Source "ChessBase"]
[SourceQuality "1"]
[TimeControl "40/5400+30:1800+30"]

1. c4 e5 2. g3 Nc6 3. Bg2 g6 4. Nc3 Bg7 5. d3 d6 6. e3 Nge7 7. Nge2 {[%emt 0:09:08]} Be6 {[%emt 0:03:41]} 8. Nd5 {[%emt 0:00:09]} O-O {[%emt 0:01:28]} 9. O-O {[%emt 0:00:14]} Qd7 {[%emt 0:01:45]} 10. Rb1 {[%emt 0:00:36]} Nd8 {[%emt 0:01:44]} 11. Nxe7+ {[%emt 0:02:49]} Qxe7 {[%emt 0:00:17]} 12. b3 {[%emt 0:00:07]} f5 {[%emt 0:02:18]} 13. d4 {[%emt 0:02:04]} e4 {[%emt 0:10:04]} 14. Bb2 {[%emt 0:08:07]} Nf7 {[%emt 0:05:26]} 15. Qd2 Bd7 16. b4 {[%emt 0:07:43]} b5 {[%emt 0:04:04]} 17. Rfc1 {[%emt 0:02:42]} bxc4 {[%emt 0:04:19]} 18. Nf4 {[%emt 0:11:42]} g5 {[%emt 0:08:31]} 19. Nd5 {[%emt 0:15:48]} Qd8 {[%emt 0:00:34]} 20. Bf1 {[%emt 0:11:41]} c6 {[%emt 0:01:05]} 21. Nc3 {[%emt 0:00:09]} d5 {[%emt 0:00:28]} 22. b5 {[%emt 0:02:08]} Qc7 {[%emt 0:03:02]} 23. Ba3 {[%emt 0:04:14]} Rfe8 {[%emt 0:00:37]} 24. bxc6 {[%emt 0:04:22]} Bxc6 {[%emt 0:00:24]} 25. Nb5 {[%emt 0:01:40]} Qd7 {[%emt 0:01:39]} 26. Qa5 {[%emt 0:00:29]} Rec8 {[%emt 0:12:23]} 27. Bc5 {[%emt 0:03:12]} a6 {[%emt 0:03:23]} 28. Nc3 {[%emt 0:00:42]} Bf6 {[%emt 0:02:58]} 29. Rb2 {[%emt 0:03:21]} Nd8 {[%emt 0:05:53]} 30. Qa3 {[%emt 0:04:28]} Ne6 {[%emt 0:02:10]} 31. Rb6 {[%emt 0:04:04]} Nxc5 {[%emt 0:02:31]} 32. dxc5 {[%emt 0:00:22]} Bd8 {[%emt 0:02:47]} 33. Rxc6 {[%emt 0:02:01]} Qxc6 {[%emt 0:00:43]} 34. Nxd5 {[%emt 0:00:08]} Qxc5 {[%emt 0:00:46]} 35. Qxc5 {[%emt 0:02:04]} Rxc5 {[%emt 0:00:06]} 36. Bxc4 {[%emt 0:00:27]} Kg7 {[%emt 0:02:24]} 0-1

[Event "WTCC-65 2018"]
[Site "Radebeul"]
[Date "2018.07.10"]
[Round "4"]
[White "Khanukov, Boris"]
[Black "Hilpert, Rainer"]
[Result "1/2-1/2"]
[ECO "A05"]
[WhiteElo "2273"]
[BlackElo "2127"]
[Annotator "NA"]
[PlyCount "80"]
[EventDate "2018.07.07"]
[EventType "team-tourn"]
[EventCountry "GER"]
[SourceTitle "playchess.com"]
[Source "ChessBase"]
[SourceQuality "1"]
[TimeControl "40/5400+30:1800+30"]

1. Nf3 {[%emt 0:00:00]} Nf6 {[%emt 0:00:00]} 2. g3 {[%emt 0:00:04]} d5 {[%emt 0:00:19]} 3. Bg2 {[%emt 0:00:59]} c6 {[%emt 0:00:37]} 4. O-O {[%emt 0:00:17]} Bf5 {[%emt 0:00:38]} 5. d4 {[%emt 0:01:45]} e6 {[%emt 0:00:33]} 6. Nh4 {[%emt 0:01:21]} Bg6 {[%emt 0:04:24]} 7. Nxg6 {[%emt 0:02:37]} hxg6 {[%emt 0:00:09]} 8. Nd2 {[%emt 0:00:28]} Nbd7 {[%emt 0:01:26]} 9. e4 {[%emt 0:00:39]} dxe4 {[%emt 0:02:29]} 10. Nxe4 {[%emt 0:00:14]} Nxe4 {[%emt 0:01:38]} 11. Bxe4 {[%emt 0:00:08]} Bd6 {[%emt 0:00:57]} 12. Bg2 {[%emt 0:02:04]} O-O {[%emt 0:06:12]} 13. c4 {[%emt 0:01:14]} Nf6 {[%emt 0:02:08]} 14. Bg5 {[%emt 0:00:49]} Qa5 {[%emt 0:04:15]} 15. Bd2 {[%emt 0:02:54]} Bb4 {[%emt 0:09:40]} 16. Be3 {[%emt 0:02:02]} Rfd8 {[%emt 0:06:19]} 17. a3 {[%emt 0:01:34]} Be7 {[%emt 0:01:42]} 18. Qe2 {[%emt 0:02:01]} Rd7 {[%emt 0:01:53]} 19. Rfd1 {[%emt 0:02:00]} Rad8 {[%emt 0:02:35]} 20. h3 {[%emt 0:01:23]} Qa4 {[%emt 0:08:14]} 21. Bf3 {[%emt 0:02:32]} Ne8 {[%emt 0:02:09]} 22. Rac1 {[%emt 0:27:33]} Bf6 {[%emt 0:01:51]} 23. d5 {[%emt 0:00:56]} cxd5 {[%emt 0:02:29]} 24. cxd5 {[%emt 0:00:11]} exd5 {[%emt 0:00:28]} 25. Bg4 {[%emt 0:01:19]} Re7 {[%emt 0:04:14]} 26. Qc2 {[%emt 0:01:01]} Qb5 {[%emt 0:04:39]} 27. Qc5 {[%emt 0:08:52]} Qxb2 {[%emt 0:06:34]} 28. Rb1 {[%emt 0:00:47]} Qc3 {[%emt 0:00:50]} 29. Qxc3 {[%emt 0:01:14]} Bxc3 {[%emt 0:00:10]} 30. Bxa7 {[%emt 0:00:18]} Nf6 {[%emt 0:05:00]} 31. Bf3 {[%emt 0:02:56]} Red7 {[%emt 0:03:27]} 32. g4 {[%emt 0:02:46]} Ra8 {[%emt 0:04:54]} 33. Bc5 {[%emt 0:05:23]} Ra5 {[%emt 0:00:24]} 34. Be3 {[%emt 0:00:52]} d4 {[%emt 0:01:41]} 35. Bc1 {[%emt 0:00:35]} Nd5 {[%emt 0:02:10]} 36. Rb3 {[%emt 0:00:25]} Rc5 {[%emt 0:02:29]} 37. Kf1 {[%emt 0:03:50]} b5 {[%emt 0:00:36]} 38. Be2 {[%emt 0:00:41]} Rb7 {[%emt 0:03:34]} 39. Bf3 {[%emt 0:01:30]} Rd7 {[%emt 0:00:02]} 40. Be2 {[%emt 0:01:04]} Rb7 {[%emt 0:00:08]} 1/2-1/2

[Event "WTCC-65 2018"]
[Site "Radebeul"]
[Date "2018.07.10"]
[Round "4"]
[White "Giffard, Nicolas"]
[Black "Munninghoff, Alexander"]
[Result "1-0"]
[ECO "A84"]
[WhiteElo "2260"]
[BlackElo "1918"]
[Annotator "NA"]
[PlyCount "51"]
[EventDate "2018.07.07"]
[EventType "team-tourn"]
[EventCountry "GER"]
[SourceTitle "playchess.com"]
[Source "ChessBase"]
[SourceQuality "1"]
[TimeControl "40/5400+30:1800+30"]

1. d4 {[%emt 0:00:00]} f5 {[%emt 0:00:00]} 2. c4 {[%emt 0:03:06]} Nf6 {[%emt 0:00:00]} 3. e3 {[%emt 0:01:25]} e6 {[%emt 0:00:13]} 4. Bd3 {[%emt 0:00:22]} Be7 {[%emt 0:00:50]} 5. Ne2 {[%emt 0:00:25]} O-O {[%emt 0:00:23]} 6. f3 {[%emt 0:00:57]} d6 {[%emt 0:00:56]} 7. Qc2 {[%emt 0:00:27]} Nc6 {[%emt 0:02:45]} 8. a3 {[%emt 0:00:09]} a5 {[%emt 0:01:09]} 9. Nbc3 {[%emt 0:00:28]} Qe8 {[%emt 0:01:01]} 10. Bd2 {[%emt 0:04:40]} Bd8 {[%emt 0:03:57]} 11. O-O-O {[%emt 0:01:40]} Ne7 {[%emt 0:01:31]} 12. e4 {[%emt 0:05:54]} c6 {[%emt 0:05:16]} 13. exf5 {[%emt 0:05:03]} exf5 {[%emt 0:04:41]} 14. h3 {[%emt 0:00:32]} Bd7 {[%emt 0:02:39]} 15. g4 {[%emt 0:00:23]} b5 {[%emt 0:09:58]} 16. cxb5 {[%emt 0:08:44]} cxb5 {[%emt 0:00:32]} 17. Qb3+ {[%emt 0:00:11]} Kh8 {[%emt 0:00:44]} 18. Bxb5 {[%emt 0:00:19]} Bc7 {[%emt 0:05:50]} 19. Nf4 {[%emt 0:03:44]} Nc6 {[%emt 0:04:03]} 20. Bxc6 {[%emt 0:03:54]} Bxc6 {[%emt 0:01:00]} 21. d5 {[%emt 0:00:11]} Qf7 {[%emt 0:05:25]} 22. Qa2 {[%emt 0:07:24]} Bd7 {[%emt 0:03:12]} 23. g5 {[%emt 0:01:39]} Ng8 {[%emt 0:01:26]} 24. h4 {[%emt 0:01:25]} Rfc8 {[%emt 0:01:18]} 25. h5 {[%emt 0:00:16]} Bd8 {[%emt 0:03:20]} 26. Ng6+ 1-0

[Event "WTCC-65 2018"]
[Site "Radebeul"]
[Date "2018.07.10"]
[Round "4"]
[White "Kierzek, Matthias"]
[Black "Sprotte, Norbert"]
[Result "1/2-1/2"]
[ECO "D38"]
[WhiteElo "2247"]
[BlackElo "2143"]
[Annotator "NA"]
[PlyCount "29"]
[EventDate "2018.07.07"]
[EventType "team-tourn"]
[EventCountry "GER"]
[SourceTitle "playchess.com"]
[Source "ChessBase"]
[SourceQuality "1"]
[TimeControl "40/5400+30:1800+30"]

1. d4 {[%emt 0:00:00]} Nf6 {[%emt 0:00:00]} 2. c4 {[%emt 0:00:00]} e6 {[%emt 0:00:20]} 3. Nf3 {[%emt 0:00:00]} d5 {[%emt 0:00:54]} 4. Nc3 {[%emt 0:00:17]} Bb4 {[%emt 0:00:49]} 5. Bg5 {[%emt 0:02:14]} h6 {[%emt 0:01:58]} 6. Bxf6 {[%emt 0:00:20]} Qxf6 {[%emt 0:00:12]} 7. Qa4+ {[%emt 0:00:21]} Nc6 {[%emt 0:00:35]} 8. e3 {[%emt 0:00:11]} O-O {[%emt 0:02:43]} 9. cxd5 {[%emt 0:12:10]} exd5 {[%emt 0:00:30]} 10. Be2 {[%emt 0:00:05]} Rd8 {[%emt 0:21:59]} 11. O-O {[%emt 0:01:29]} Be6 {[%emt 0:14:00]} 12. Ne5 {[%emt 0:27:37]} Bxc3 {[%emt 0:04:57]} 13. Nxc6 {[%emt 0:00:28]} Bd7 {[%emt 0:06:07]} 14. bxc3 {[%emt 0:00:35]} Bxc6 {[%emt 0:02:10]} 15. Bb5 {[%emt 0:07:01]} 1/2-1/2

[Event "WTCC-65 2018"]
[Site "Radebeul"]
[Date "2018.07.10"]
[Round "4"]
[White "Postler, Reinhard"]
[Black "Ackermann, Hans Werner"]
[Result "1/2-1/2"]
[ECO "B06"]
[WhiteElo "2243"]
[BlackElo "2267"]
[Annotator "NA"]
[PlyCount "95"]
[EventDate "2018.07.07"]
[EventType "team-tourn"]
[EventCountry "GER"]
[SourceTitle "playchess.com"]
[Source "ChessBase"]
[SourceQuality "1"]
[TimeControl "40/5400+30:1800+30"]

1. e4 {[%emt 0:00:00]} g6 {[%emt 0:00:00]} 2. d4 {[%emt 0:00:00]} d6 {[%emt 0:00:00]} 3. Nc3 {[%emt 0:00:00]} Bg7 {[%emt 0:00:21]} 4. Nf3 {[%emt 0:00:00]} a6 {[%emt 0:01:00]} 5. a4 {[%emt 0:00:45]} Nf6 {[%emt 0:02:59]} 6. Be2 {[%emt 0:02:43]} O-O {[%emt 0:14:35]} 7. O-O {[%emt 0:00:32]} Nc6 {[%emt 0:03:46]} 8. h3 {[%emt 0:17:23]} e6 {[%emt 0:12:13]} 9. Be3 {[%emt 0:14:35]} h6 {[%emt 0:14:44]} 10. Qd2 {[%emt 0:05:14]} Kh7 {[%emt 0:01:39]} 11. Rad1 {[%emt 0:00:34]} Ng8 {[%emt 0:03:10]} 12. d5 {[%emt 0:04:16]} exd5 {[%emt 0:09:33]} 13. exd5 {[%emt 0:01:32]} Nce7 {[%emt 0:01:24]} 14. Nd4 {[%emt 0:02:34]} Nf6 {[%emt 0:02:30]} 15. Bf3 {[%emt 0:02:33]} Nd7 {[%emt 0:04:50]} 16. Rfe1 {[%emt 0:08:04]} Ne5 {[%emt 0:01:54]} 17. Be2 {[%emt 0:00:26]} Nd7 {[%emt 0:03:06]} 18. b3 {[%emt 0:09:00]} a5 {[%emt 0:02:47]} 19. f4 {[%emt 0:05:53]} Nc5 {[%emt 0:03:00]} 20. Bf3 {[%emt 0:02:23]} Bd7 {[%emt 0:03:08]} 21. Bf2 {[%emt 0:03:35]} Ng8 {[%emt 0:01:14]} 22. Ne4 {[%emt 0:02:47]} b6 {[%emt 0:02:03]} 23. Nc3 {[%emt 0:05:46]} Qc8 {[%emt 0:03:52]} 24. Be2 {[%emt 0:00:36]} Nf6 {[%emt 0:01:17]} 25. Bf3 {[%emt 0:02:23]} Ng8 {[%emt 0:02:20]} 26. Nc6 {[%emt 0:02:06]} Qb7 {[%emt 0:01:12]} 27. Ne4 {[%emt 0:01:03]} Nxe4 {[%emt 0:00:30]} 28. Bxe4 {[%emt 0:00:11]} Rae8 {[%emt 0:00:25]} 29. Bf3 {[%emt 0:00:10]} Qa8 {[%emt 0:01:02]} 30. Qd3 {[%emt 0:00:52]} Rxe1+ {[%emt 0:00:36]} 31. Rxe1 {[%emt 0:00:01]} Re8 {[%emt 0:00:05]} 32. Rxe8 {[%emt 0:00:55]} Qxe8 {[%emt 0:00:12]} 33. Nd4 {[%emt 0:00:16]} Ne7 {[%emt 0:02:07]} 34. Nb5 {[%emt 0:00:12]} Bxb5 {[%emt 0:01:06]} 35. axb5 {[%emt 0:00:09]} Ng8 {[%emt 0:00:07]} 36. h4 {[%emt 0:01:24]} Nf6 {[%emt 0:00:30]} 37. h5 {[%emt 0:00:10]} Nd7 {[%emt 0:00:38]} 38. hxg6+ {[%emt 0:03:30]} fxg6 {[%emt 0:00:05]} 39. f5 {[%emt 0:00:50]} Ne5 {[%emt 0:02:07]} 40. fxg6+ {[%emt 0:00:04]} Qxg6 {[%emt 0:00:27]} 41. Be4 {[%emt 0:31:22]} Nxd3 {[%emt 0:30:10]} 42. cxd3 {[%emt 0:01:09]} Bf6 {[%emt 0:00:28]} 43. Be3 {[%emt 0:00:00]} Kg7 {[%emt 0:00:00]} 44. Bxg6 {[%emt 0:00:00]} Kxg6 {[%emt 0:00:00]} 45. g4 {[%emt 0:00:00]} h5 {[%emt 0:00:00]} 46. gxh5+ {[%emt 0:00:00]} Kxh5 {[%emt 0:00:00]} 47. Kf2 {[%emt 0:00:00]} Kg4 {[%emt 0:00:00]} 48. d4 {[%emt 0:00:00]} 1/2-1/2

[Event "WTCC-65 2018"]
[Site "Radebeul"]
[Date "2018.07.10"]
[Round "4"]
[White "Kargoll, Herbert"]
[Black "Shushpanov, Vladimir"]
[Result "0-1"]
[ECO "B06"]
[WhiteElo "2230"]
[BlackElo "2198"]
[Annotator "NA"]
[PlyCount "112"]
[EventDate "2018.07.07"]
[EventType "team-tourn"]
[EventCountry "GER"]
[SourceTitle "playchess.com"]
[Source "ChessBase"]
[SourceQuality "1"]
[TimeControl "40/5400+30:1800+30"]

1. e4 {[%emt 0:00:00]} g6 {[%emt 0:00:00]} 2. d4 {[%emt 0:00:00]} Bg7 {[%emt 0:00:00]} 3. Bc4 {[%emt 0:01:04]} c6 {[%emt 0:00:34]} 4. Nc3 {[%emt 0:00:11]} d5 {[%emt 0:00:54]} 5. exd5 {[%emt 0:01:04]} b5 {[%emt 0:00:31]} 6. Bb3 {[%emt 0:03:21]} b4 {[%emt 0:00:14]} 7. Nce2 {[%emt 0:08:35]} cxd5 {[%emt 0:00:20]} 8. a3 {[%emt 0:03:20] B06: Modern Defence} bxa3 {[%emt 0:02:59]} 9. Rxa3 {[%emt 0:00:10]} e6 {[%emt 0:04:10]} (9... Nf6 10. Nf3 O-O 11. O-O Nc6 12. Ne5 Bb7 13. Nd3 Ne4 14. c3 Na5 15. Bc2 Nc4 16. Ra2 e6 17. Ng3 Ned6 18. Re1 Bc6 19. Bf4 Re8 {½-½ (113) Korobov,A (2692)-Shtembuliak,E (2478) Rivne 2016}) 10. Nf3 {[%emt 0:09:39]} Ne7 {[%emt 0:01:20]} 11. Bf4 {[%emt 0:10:45]} Nbc6 {[%emt 0:02:11]} 12. Ne5 $146 {[%emt 0:03:00]} ({Predecessor:} 12. O-O O-O 13. Qd2 a5 14. Rfa1 Ba6 15. Nc1 Nf5 {½-½ (63) Germer,P (2177)-Skembris,S (2463) Baden 2012}) 12... O-O {[%emt 0:02:35]} 13. Nxc6 {[%emt 0:01:27]} Nxc6 {[%emt 0:00:04]} 14. Qd2 {[%emt 0:00:16]} Ne7 {[%emt 0:10:12]} 15. Bh6 {[%emt 0:15:32]} Qb6 {[%emt 0:03:31]} 16. Bxg7 {[%emt 0:00:23]} Kxg7 {[%emt 0:00:03]} 17. O-O {[%emt 0:04:04]} Ba6 {[%emt 0:00:42]} 18. Rd1 {[%emt 0:03:18]} Bxe2 {[%emt 0:01:41]} 19. Qxe2 {[%emt 0:00:01]} a5 {[%emt 0:00:58]} 20. c4 {[%emt 0:03:51]} dxc4 {[%emt 0:03:06]} 21. Bxc4 {[%emt 0:00:07]} Rfd8 {[%emt 0:01:26]} 22. h4 {[%emt 0:05:00]} h5 {[%emt 0:02:21]} 23. Qe5+ {[%emt 0:03:22]} Kg8 {[%emt 0:02:13]} 24. Rb3 {[%emt 0:00:05]} Qd6 {[%emt 0:03:57]} 25. Qf6 {[%emt 0:02:30]} Nd5 {[%emt 0:02:40]} 26. Qf3 {[%emt 0:01:23]} Rab8 {[%emt 0:05:38]} 27. Rxb8 {[%emt 0:01:28]} Qxb8 {[%emt 0:00:31]} 28. b3 {[%emt 0:03:04]} Qb4 {[%emt 0:02:50]} 29. Ra1 {[%emt 0:01:05]} Nb6 {[%emt 0:03:43]} 30. Bxe6 {[%emt 0:08:04]} fxe6 {[%emt 0:00:27]} 31. Qf6 {[%emt 0:00:01]} Qxd4 {[%emt 0:01:25]} 32. Qxg6+ {[%emt 0:00:21]} Kf8 {[%emt 0:00:52]} 33. Rxa5 {[%emt 0:00:35]} Qxh4 {[%emt 0:04:59]} 34. Qh6+ {[%emt 0:00:33]} Ke7 {[%emt 0:01:08]} 35. Qh7+ {[%emt 0:02:08]} Kd6 {[%emt 0:02:55]} 36. Rxh5 {[%emt 0:00:13]} Qd4 {[%emt 0:00:53]} 37. Rh3 {[%emt 0:00:27]} Nd5 {[%emt 0:00:44]} 38. Qb7 {[%emt 0:01:27]} Qb6 {[%emt 0:02:20]} 39. Qg7 {[%emt 0:01:02]} Qb4 {[%emt 0:01:46]} 40. Qg3+ {[%emt 0:01:25]} Qf4 {[%emt 0:00:45]} 41. Qd3 {[%emt 0:31:04]} Qc1+ {[%emt 0:31:49]} 42. Kh2 {[%emt 0:00:23]} Ra8 {[%emt 0:01:37]} 43. Rh4 {[%emt 0:02:46]} Qg5 {[%emt 0:01:25]} 44. g3 {[%emt 0:00:00]} Ra1 {[%emt 0:00:00]} 45. Qb5 {[%emt 0:00:00]} Qd2 {[%emt 0:00:00]} 46. Qb8+ {[%emt 0:00:00]} Kc6 {[%emt 0:00:00]} 47. Rc4+ {[%emt 0:00:00]} Kd7 {[%emt 0:00:00]} 48. Qb7+ {[%emt 0:00:00]} Kd6 {[%emt 0:00:00]} 49. Rc6+ {[%emt 0:00:00]} Ke5 {[%emt 0:00:00]} 50. Qg7+ {[%emt 0:00:00]} Kf5 {[%emt 0:01:55]} 51. g4+ {[%emt 0:00:25]} Ke4 {[%emt 0:01:07]} 52. Rxe6+ $15 {[%emt 0:03:45]} ({White should try} 52. Qh7+ $11 Ke5 53. Qh5+ Kf6 54. Qh8+ Kf7 55. Qh7+ (55. Qxa1 Qxf2+ 56. Kh1 Qh4+ 57. Kg1 Qxg4+ 58. Kh2 Qf4+ 59. Kh1 Qh4+ 60. Kg1 Qg3+ 61. Kh1 Qh3+ 62. Kg1 Qe3+ 63. Kh1 Qh3+ 64. Kg1 Qg3+ 65. Kh1 Qf3+ 66. Kg1 Qg3+ $11) 55... Kf6 {[#]} 56. g5+ $1 {[%mdl 512]} Qxg5 57. Qh8+ Kg6 58. Qxa1 Qf4+ 59. Kg1 Qg4+ 60. Kh2 Qf4+ 61. Kg1 Qg4+ 62. Kh2 Qf4+) 52... Kf3 {[%emt 0:01:33]} 53. Qf7+ {[%emt 0:01:30]} (53. Qxa1 $2 {wird mattgesetzt.} Qxf2+ 54. Kh3 Qg3#) 53... Qf4+ {[%emt 0:01:23]} 54. Qxf4+ {[%emt 0:00:38]} Nxf4 {[%emt 0:00:04]} 55. Rc6 {[%emt 0:01:09]} Ra8 {[%emt 0:00:51]} 56. g5 {[%emt 0:01:12]} Rg8 {[%emt 0:00:59]} 0-1

[Event "WTCC-65 2018"]
[Site "Radebeul"]
[Date "2018.07.10"]
[Round "4"]
[White "Nehmert, Ulrich"]
[Black "Mishuchkov, Nikolai M"]
[Result "0-1"]
[ECO "D02"]
[WhiteElo "2220"]
[BlackElo "2311"]
[Annotator "NA"]
[PlyCount "58"]
[EventDate "2018.07.07"]
[EventType "team-tourn"]
[EventCountry "GER"]
[SourceTitle "playchess.com"]
[Source "ChessBase"]
[SourceQuality "1"]
[TimeControl "40/5400+30:1800+30"]

1. d4 {[%emt 0:00:00]} Nf6 {[%emt 0:00:00]} 2. Nf3 {[%emt 0:00:00]} d5 {[%emt 0:00:33]} 3. Bf4 {[%emt 0:00:20]} c5 {[%emt 0:00:19]} 4. e3 {[%emt 0:02:06]} Qb6 {[%emt 0:01:37]} 5. Nc3 {[%emt 0:00:53]} Bd7 {[%emt 0:03:18]} 6. Rb1 {[%emt 0:02:07]} e6 {[%emt 0:00:28]} 7. Be2 {[%emt 0:00:32]} Be7 {[%emt 0:01:58]} 8. O-O {[%emt 0:01:10]} O-O {[%emt 0:00:45]} 9. Ne5 {[%emt 0:07:14]} Rd8 {[%emt 0:17:19]} 10. dxc5 {[%emt 0:07:53]} Qxc5 {[%emt 0:03:43]} 11. Qd4 {[%emt 0:14:10]} Nc6 {[%emt 0:09:52]} 12. Qxc5 {[%emt 0:10:53]} Bxc5 {[%emt 0:00:06]} 13. a3 {[%emt 0:02:07]} Nxe5 {[%emt 0:09:59]} 14. Bxe5 {[%emt 0:00:04]} Bc6 {[%emt 0:00:07]} 15. Rfd1 {[%emt 0:05:50]} Nd7 {[%emt 0:00:53]} 16. Bc7 {[%emt 0:00:42]} Rdc8 {[%emt 0:00:05]} 17. Bg3 {[%emt 0:00:11]} Nb6 {[%emt 0:01:43]} 18. Bd3 {[%emt 0:05:35]} f6 {[%emt 0:11:50]} 19. e4 {[%emt 0:00:44]} d4 {[%emt 0:00:25]} 20. Nb5 {[%emt 0:00:41]} e5 {[%emt 0:03:22]} 21. c4 {[%emt 0:11:11]} a6 {[%emt 0:03:43]} 22. b4 {[%emt 0:00:22]} Bf8 {[%emt 0:02:51]} 23. Nd6 {[%emt 0:02:13]} Bxd6 {[%emt 0:00:15]} 24. c5 {[%emt 0:00:02]} Na4 {[%emt 0:10:27]} 25. cxd6 {[%emt 0:00:45]} Nc3 {[%emt 0:00:06]} 26. f4 {[%emt 0:00:14]} exf4 {[%emt 0:04:02]} 27. Bxf4 {[%emt 0:00:31]} Bb5 {[%emt 0:00:47]} 28. Bf1 {[%emt 0:05:27]} Re8 {[%emt 0:06:14]} 29. Rbc1 Nxd1 0-1

[Event "WTCC-65 2018"]
[Site "Radebeul"]
[Date "2018.07.10"]
[Round "4"]
[White "Emerson, Roger"]
[Black "Pushkov, Nikolai"]
[Result "0-1"]
[ECO "C03"]
[WhiteElo "2211"]
[BlackElo "2311"]
[Annotator "NA"]
[PlyCount "56"]
[EventDate "2018.07.07"]
[EventType "team-tourn"]
[EventCountry "GER"]
[SourceTitle "playchess.com"]
[Source "ChessBase"]
[SourceQuality "1"]
[TimeControl "40/5400+30:1800+30"]

1. e4 {[%emt 0:00:01]} e6 {[%emt 0:00:00]} 2. d4 {[%emt 0:00:12]} d5 {[%emt 0:00:00]} 3. Nd2 {[%emt 0:00:52]} a6 {[%emt 0:00:26]} 4. Ngf3 {[%emt 0:01:10]} c5 {[%emt 0:00:23]} 5. exd5 {[%emt 0:00:55]} exd5 {[%emt 0:00:03]} 6. Be2 {[%emt 0:00:20]} Nf6 {[%emt 0:01:42]} 7. O-O {[%emt 0:00:42]} c4 {[%emt 0:02:43]} 8. b3 {[%emt 0:01:52]} cxb3 {[%emt 0:00:02]} 9. c4 {[%emt 0:04:54]} Be7 {[%emt 0:01:40]} 10. axb3 {[%emt 0:10:42]} O-O {[%emt 0:01:33]} 11. Bd3 {[%emt 0:02:23]} Nc6 {[%emt 0:01:36]} 12. h3 {[%emt 0:06:11]} dxc4 {[%emt 0:03:37]} 13. Nxc4 {[%emt 0:00:23]} b5 {[%emt 0:00:51]} 14. Nce5 {[%emt 0:05:02]} Bb7 {[%emt 0:00:25]} 15. Bg5 {[%emt 0:00:19]} Nb4 {[%emt 0:09:02]} 16. Bb1 {[%emt 0:01:17]} h6 {[%emt 0:06:04]} 17. Bxf6 {[%emt 0:07:13]} Bxf6 {[%emt 0:00:12]} 18. Re1 {[%emt 0:00:47]} Qd6 {[%emt 0:02:51]} 19. Be4 {[%emt 0:05:16]} Bxe4 {[%emt 0:01:40]} 20. Rxe4 {[%emt 0:00:08]} Rac8 {[%emt 0:00:57]} 21. Qd2 {[%emt 0:04:46]} Rc2 {[%emt 0:03:11]} 22. Qf4 {[%emt 0:07:08]} Rfc8 {[%emt 0:06:04]} 23. Rae1 {[%emt 0:03:12]} Nd5 {[%emt 0:04:53]} 24. Qf5 {[%emt 0:00:44]} Rc1 {[%emt 0:01:08]} 25. g4 {[%emt 0:05:25]} Qe6 {[%emt 0:05:23]} 26. Qh5 {[%emt 0:00:10]} Rxe1+ {[%emt 0:01:17]} 27. Nxe1 {[%emt 0:02:23]} Bg5 {[%emt 0:02:08]} 28. N1f3 {[%emt 0:02:15]} Nf6 {[%emt 0:00:18]} 0-1

[Event "WTCC-65 2018"]
[Site "Radebeul"]
[Date "2018.07.10"]
[Round "4"]
[White "Watzka, Horst"]
[Black "Renman, Nils-Gustaf"]
[Result "1-0"]
[ECO "C07"]
[WhiteElo "2194"]
[BlackElo "2343"]
[Annotator "NA"]
[PlyCount "54"]
[EventDate "2018.07.07"]
[EventType "team-tourn"]
[EventCountry "GER"]
[SourceTitle "playchess.com"]
[Source "ChessBase"]
[SourceQuality "1"]
[TimeControl "40/5400+30:1800+30"]

1. e4 {[%emt 0:00:00]} e6 {[%emt 0:00:00]} 2. d4 {[%emt 0:00:00]} d5 {[%emt 0:00:00]} 3. Nd2 {[%emt 0:00:36]} c5 {[%emt 0:00:32]} 4. exd5 {[%emt 0:01:04]} Qxd5 {[%emt 0:00:09]} 5. Ngf3 {[%emt 0:04:55]} cxd4 {[%emt 0:00:09]} 6. Bc4 {[%emt 0:00:11]} Qd6 {[%emt 0:00:04]} 7. O-O {[%emt 0:00:17]} Nf6 {[%emt 0:00:25]} 8. Nb3 {[%emt 0:00:48]} Nc6 {[%emt 0:00:07]} 9. Nbxd4 {[%emt 0:02:00]} Nxd4 {[%emt 0:00:10]} 10. Qxd4 {[%emt 0:02:03]} Qxd4 {[%emt 0:06:36]} 11. Nxd4 {[%emt 0:00:09]} Bd7 {[%emt 0:05:03]} 12. c3 {[%emt 0:12:56]} Bc5 {[%emt 0:03:00]} 13. Rd1 {[%emt 0:17:09]} O-O-O {[%emt 0:07:09]} 14. Bf4 {[%emt 0:14:25]} Ba4 {[%emt 0:20:12]} 15. Bb3 {[%emt 0:03:01]} Bxb3 {[%emt 0:07:10]} 16. Nxb3 {[%emt 0:00:13]} Bb6 {[%emt 0:00:23]} 17. Kf1 {[%emt 0:04:23]} Rd5 {[%emt 0:07:19]} 18. Rxd5 {[%emt 0:02:45]} Nxd5 {[%emt 0:00:10]} 19. Bg3 {[%emt 0:01:20]} Rd8 {[%emt 0:01:39]} 20. Ke2 {[%emt 0:01:23]} f6 {[%emt 0:01:22]} 21. Rd1 {[%emt 0:09:27]} e5 {[%emt 0:01:05]} 22. Nd2 {[%emt 0:01:20]} Bc5 {[%emt 0:09:18]} 23. Ne4 {[%emt 0:06:45]} Be7 {[%emt 0:02:00]} 24. c4 {[%emt 0:00:26]} Nb4 {[%emt 0:00:54]} 25. Rxd8+ {[%emt 0:00:27]} Kxd8 {[%emt 0:00:26]} 26. Nc3 {[%emt 0:00:15]} Kd7 {[%emt 0:10:59]} 27. f4 {[%emt 0:01:23]} Ke8 1-0